[Event "44th Chess Olympiad Women 2022"]
[Site "Chennai"]
[Date "2022.08.02"]
[Round "5.9"]
[White "Agrest, Inna"]
[Black "Gara, Ticia"]
[Result "0-1"]
[ECO "B12"]
[WhiteElo "2217"]
[BlackElo "2367"]
[Annotator "RC"]
[PlyCount "76"]
[EventDate "2022.07.29"]
[EventType "team-tourn"]
[EventCountry "IND"]
[SourceTitle "playchess.com"]
[Source "ChessBase"]
[SourceQuality "1"]
[WhiteTeam "Sweden"]
[BlackTeam "Hungary"]
[WhiteTeamCountry "SWE"]
[BlackTeamCountry "HUN"]
[TimeControl "40/5400+30:1800+30"]

1. e4 {[%emt 0:00:03]} c6 {[%emt 0:00:04]} 2. d4 {[%emt 0:00:15]} d5 {[%emt 0:00:07]} 3. e5 {[%emt 0:01:08]} Bf5 {[%emt 0:00:13]} 4. g4 {[%emt 0:01:04]} Be4 {[%emt 0:00:32]} 5. f3 {[%emt 0:01:01]} Bg6 {[%emt 0:00:06]} 6. e6 {[%emt 0:03:34]} fxe6 {[%emt 0:00:13]} 7. Bd3 {[%emt 0:06:14]} Bxd3 {[%emt 0:04:14]} 8. Qxd3 {[%emt 0:00:06]} Qd6 {[%emt 0:14:25]} 9. f4 {[%emt 0:06:57]} Nf6 {[%emt 0:00:38]} 10. g5 {[%emt 0:07:38]} Nh5 {[%emt 0:06:18]} 11. Ne2 {[%emt 0:06:53]} Nd7 {[%emt 0:05:58]} 12. Be3 {[%emt 0:10:50]} g6 {[%emt 0:03:10]} 13. Nd2 {[%emt 0:04:16]} Bg7 {[%emt 0:09:09]} 14. O-O-O {[%emt 0:04:11]} b5 {[%emt 0:06:11]} 15. Rdf1 {[%emt 0:04:40]} O-O {[%emt 0:04:01]} 16. c3 {[%emt 0:05:21]} c5 {[%emt 0:07:11]} 17. Nf3 {[%emt 0:08:37]} b4 {[%emt 0:05:21]} 18. cxb4 {[%emt 0:05:47]} cxd4 {[%emt 0:02:31]} 19. Bd2 {[%emt 0:00:29]} e5 {[%emt 0:03:43]} 20. fxe5 {[%emt 0:01:20]} Nxe5 {[%emt 0:00:38]} 21. Nxe5 {[%emt 0:03:01]} Qxe5 {[%emt 0:00:20]} 22. Kb1 {[%emt 0:01:43]} Qe4 {[%emt 0:01:47]} 23. Nc1 {[%emt 0:00:30]} e5 {[%emt 0:03:32]} 24. b5 {[%emt 0:02:06]} Rac8 {[%emt 0:01:22]} 25. Rxf8+ {[%emt 0:01:05]} Bxf8 {[%emt 0:04:37]} 26. Qxe4 {[%emt 0:01:25]} dxe4 {[%emt 0:00:03]} 27. Re1 {[%emt 0:04:41]} e3 {[%emt 0:00:32]} 28. Ba5 {[%emt 0:00:14]} Nf4 {[%emt 0:01:16]} 29. a4 {[%emt 0:03:15]} Bc5 {[%emt 0:04:27]} 30. Nb3 {[%emt 0:03:09]} Be7 {[%emt 0:00:29]} 31. h4 {[%emt 0:00:54]} Ng2 {[%emt 0:01:05]} 32. Re2 {[%emt 0:00:23]} Nxh4 {[%emt 0:00:41]} 33. b6 {[%emt 0:00:39]} axb6 {[%emt 0:02:16]} 34. Bxb6 {[%emt 0:00:02]} Bxg5 {[%emt 0:00:25]} 35. Nc1 {[%emt 0:02:51]} Nf3 {[%emt 0:01:35]} 36. Nd3 {[%emt 0:00:33]} e4 {[%emt 0:01:00]} 37. Nc5 {[%emt 0:01:05]} d3 {[%emt 0:01:04]} 38. Rg2 {[%emt 0:00:30]} d2 {[%emt 0:01:28]} 0-1

[Event "44th Chess Olympiad Women 2022"]
[Site "Chennai"]
[Date "2022.08.02"]
[Round "5.9"]
[White "Andric, Jelena"]
[Black "Terbe, Julianna"]
[Result "0-1"]
[ECO "D12"]
[WhiteElo "1993"]
[BlackElo "2291"]
[Annotator "NA RC"]
[PlyCount "98"]
[EventDate "2022.07.29"]
[EventType "team-tourn"]
[EventCountry "IND"]
[SourceTitle "playchess.com"]
[Source "ChessBase"]
[SourceQuality "1"]
[WhiteTeam "Sweden"]
[BlackTeam "Hungary"]
[WhiteTeamCountry "SWE"]
[BlackTeamCountry "HUN"]
[TimeControl "40/5400+30:1800+30"]

1. c4 {[%emt 0:00:12]} c6 {[%emt 0:00:06]} 2. d4 {[%emt 0:00:41]} d5 {[%emt 0:00:06]} 3. Nf3 {[%emt 0:00:38]} Nf6 {[%emt 0:00:06]} 4. e3 {[%emt 0:00:44]} Bf5 {[%emt 0:01:48]} 5. Bd3 {[%emt 0:01:29]} Bg6 {[%emt 0:00:39]} 6. Bxg6 {[%emt 0:03:20]} hxg6 {[%emt 0:00:07]} 7. Qd3 {[%emt 0:13:55]} e6 {[%emt 0:00:07]} 8. Nc3 {[%emt 0:01:35]} Bb4 {[%emt 0:04:31]} 9. Bd2 {[%emt 0:03:53]} Nbd7 {[%emt 0:01:09]} 10. Rc1 {[%emt 0:11:40]} a5 {[%emt 0:02:16]} 11. a4 {[%emt 0:06:45]} Qe7 {[%emt 0:05:27]} 12. cxd5 {[%emt 0:10:57]} exd5 {[%emt 0:00:43]} 13. Ng5 {[%emt 0:05:33]} Rh5 {[%emt 0:12:39]} 14. Nh3 {[%emt 0:03:59]} g5 {[%emt 0:02:14]} 15. Kd1 {[%emt 0:04:08]} Kf8 {[%emt 0:08:00]} 16. f3 {[%emt 0:07:33]} g4 {[%emt 0:07:37]} 17. Nf4 {[%emt 0:02:28]} Rh8 {[%emt 0:01:42]} 18. Qf5 {[%emt 0:01:30]} g6 {[%emt 0:08:43]} 19. Qg5 {[%emt 0:01:30]} Kg7 {[%emt 0:04:08]} 20. h4 {[%emt 0:04:36]} gxh3 {[%emt 0:01:36]} 21. gxh3 {[%emt 0:00:28]} Nf8 {[%emt 0:05:55]} 22. h4 {[%emt 0:02:18]} Ne6 {[%emt 0:02:03]} 23. Nxe6+ {[%emt 0:00:38]} Qxe6 {[%emt 0:00:17]} 24. Ne2 {[%emt 0:00:56]} Nh5 {[%emt 0:02:38]} 25. Qe5+ {[%emt 0:02:42]} Qxe5 {[%emt 0:04:36]} 26. dxe5 {[%emt 0:00:06]} Rae8 {[%emt 0:00:15]} 27. f4 {[%emt 0:00:39]} f6 {[%emt 0:00:11]} 28. exf6+ {[%emt 0:00:26]} Nxf6 {[%emt 0:00:07]} 29. Ng3 {[%emt 0:02:15]} Ng4 {[%emt 0:02:22]} 30. Re1 {[%emt 0:02:25]} Rxh4 {[%emt 0:01:00]} 31. Bxb4 {[%emt 0:02:42]} axb4 {[%emt 0:03:27]} 32. Nf1 {[%emt 0:01:10]} Rh3 {[%emt 0:02:45]} 33. Kd2 {[%emt 0:00:16]} Kf6 {[%emt 0:06:37]} 34. a5 {[%emt 0:01:12]} Ra8 {[%emt 0:01:11]} 35. Ra1 {[%emt 0:01:32]} Nf2 {[%emt 0:00:35]} 36. Kc2 {[%emt 0:00:35]} Ne4 {[%emt 0:00:55]} 37. Nd2 {[%emt 0:00:33]} Rh2 {[%emt 0:00:19]} 38. Red1 {[%emt 0:00:24]} Kf5 {[%emt 0:04:21]} 39. Kc1 {[%emt 0:00:33]} Nxd2 {[%emt 0:00:29]} 40. Rxd2 {[%emt 0:00:11]} Rh1+ {[%emt 0:00:06]} 41. Rd1 {[%emt 0:30:15]} Rxd1+ {[%emt 0:30:06]} 42. Kxd1 {[%emt 0:00:02]} Ke4 {[%emt 0:00:07]} 43. Ke2 {[%emt 0:00:00]} Rh8 {[%emt 0:00:00]} 44. Kf2 {[%emt 0:00:00]} Rh2+ {[%emt 0:00:00]} 45. Kg3 {[%emt 0:00:00]} Rxb2 {[%emt 0:00:00]} 46. a6 {[%emt 0:00:00]} bxa6 {[%emt 0:00:00]} 47. Rxa6 {[%emt 0:00:00]} Rc2 {[%emt 0:00:00]} 48. Rb6 {[%emt 0:00:00]} Rc4 {[%emt 0:00:00]} 49. Kg4 {[%emt 0:00:00]} Kxe3 {[%emt 0:00:00]} 0-1

[Event "44th Chess Olympiad Women 2022"]
[Site "Chennai"]
[Date "2022.08.02"]
[Round "5.10"]
[White "Matnadze, Ana"]
[Black "Chirivi C, Jenny Astrid"]
[Result "1/2-1/2"]
[ECO "E11"]
[WhiteElo "2406"]
[BlackElo "2157"]
[Annotator "RC"]
[PlyCount "135"]
[EventDate "2022.07.29"]
[EventType "team-tourn"]
[EventCountry "IND"]
[SourceTitle "playchess.com"]
[Source "ChessBase"]
[SourceQuality "1"]
[WhiteTeam "Spain"]
[BlackTeam "Colombia"]
[WhiteTeamCountry "ESP"]
[BlackTeamCountry "COL"]
[TimeControl "40/5400+30:1800+30"]

1. d4 {[%emt 0:00:03]} Nf6 {[%emt 0:00:21]} 2. Nf3 {[%emt 0:00:06]} e6 {[%emt 0:00:20]} 3. c4 {[%emt 0:00:05]} Bb4+ {[%emt 0:01:09]} 4. Bd2 {[%emt 0:00:28]} Qe7 {[%emt 0:00:22]} 5. g3 {[%emt 0:00:20]} Nc6 {[%emt 0:02:07]} 6. Bg2 {[%emt 0:00:08]} O-O {[%emt 0:18:30]} 7. O-O {[%emt 0:00:15]} Bxd2 {[%emt 0:01:55]} 8. Nbxd2 {[%emt 0:00:36]} d6 {[%emt 0:00:20]} 9. e4 {[%emt 0:02:59]} e5 {[%emt 0:02:06]} 10. d5 {[%emt 0:00:31]} Nb8 {[%emt 0:01:06]} 11. b4 {[%emt 0:01:21]} a5 {[%emt 0:04:54]} 12. a3 {[%emt 0:00:09]} b6 {[%emt 0:00:44]} 13. c5 {[%emt 0:02:34]} bxc5 {[%emt 0:05:46]} 14. bxc5 {[%emt 0:00:28]} Ba6 {[%emt 0:03:55]} 15. Re1 {[%emt 0:00:57]} dxc5 {[%emt 0:05:16]} 16. Qa4 {[%emt 0:06:08]} Nbd7 {[%emt 0:11:11]} 17. Qxa5 {[%emt 0:01:07]} Rfc8 {[%emt 0:00:31]} 18. Qc3 {[%emt 0:00:26]} c6 {[%emt 0:03:19]} 19. Nh4 {[%emt 0:06:19]} g6 {[%emt 0:02:25]} 20. a4 {[%emt 0:00:33]} Qd6 {[%emt 0:05:23]} 21. Nf1 {[%emt 0:13:17]} cxd5 {[%emt 0:02:29]} 22. exd5 {[%emt 0:00:10]} Rab8 {[%emt 0:03:57]} 23. Ne3 {[%emt 0:03:33]} Rb4 {[%emt 0:00:51]} 24. a5 {[%emt 0:08:59]} Rcb8 {[%emt 0:01:12]} 25. Qc1 {[%emt 0:02:34]} Bd3 {[%emt 0:09:48]} 26. a6 {[%emt 0:08:09]} Rb1 {[%emt 0:07:18]} 27. a7 {[%emt 0:07:18]} Rxc1 {[%emt 0:00:12]} 28. axb8=Q+ {[%emt 0:00:10]} Qxb8 {[%emt 0:00:20]} 29. Rexc1 {[%emt 0:00:37]} h5 {[%emt 0:02:22]} 30. Nf3 {[%emt 0:00:58]} Kg7 {[%emt 0:01:00]} 31. Ne1 {[%emt 0:03:18]} e4 {[%emt 0:01:17]} 32. Nxd3 {[%emt 0:05:08]} exd3 {[%emt 0:00:05]} 33. Nc4 {[%emt 0:01:53]} Qb4 {[%emt 0:02:11]} 34. Ra2 {[%emt 0:01:55]} h4 {[%emt 0:01:17]} 35. Rb2 {[%emt 0:00:58]} Qa4 {[%emt 0:00:25]} 36. Rd2 {[%emt 0:01:54]} Qb3 {[%emt 0:00:47]} 37. Rb2 {[%emt 0:02:10]} Qa4 {[%emt 0:00:07]} 38. Rd2 {[%emt 0:01:47]} Qb3 {[%emt 0:00:06]} 39. Bf3 {[%emt 0:07:35]} h3 {[%emt 0:01:00]} 40. Bd1 {[%emt 0:00:35]} Qb4 {[%emt 0:01:18]} 41. Kf1 {[%emt 0:33:32]} Qb7 {[%emt 0:30:42]} 42. Rxd3 {[%emt 0:01:44]} Qb8 {[%emt 0:00:00]} 43. Bf3 {[%emt 0:00:00]} Qb5 {[%emt 0:00:00]} 44. Be2 {[%emt 0:00:00]} Qb4 {[%emt 0:00:00]} 45. f3 {[%emt 0:00:00]} Qb7 {[%emt 0:00:00]} 46. Rcd1 {[%emt 0:00:00]} Qb8 {[%emt 0:00:00]} 47. Kf2 {[%emt 0:00:00]} Qb4 {[%emt 0:00:00]} 48. Re3 {[%emt 0:00:00]} Kf8 {[%emt 0:00:00]} 49. d6 {[%emt 0:00:00]} Qa4 {[%emt 0:00:00]} 50. Rd2 {[%emt 0:00:00]} Qa1 {[%emt 0:00:00]} 51. Bf1 {[%emt 0:00:00]} Qc1 {[%emt 0:00:00]} 52. Re1 {[%emt 0:00:03]} Qc3 {[%emt 0:00:00]} 53. Red1 {[%emt 0:05:34]} g5 {[%emt 0:00:23]} 54. Ne3 {[%emt 0:00:46]} g4 {[%emt 0:00:37]} 55. Nxg4 {[%emt 0:00:55]} Nxg4+ {[%emt 0:00:53]} 56. fxg4 {[%emt 0:00:01]} Nf6 {[%emt 0:01:31]} 57. Re2 {[%emt 0:02:57]} Qb3 {[%emt 0:01:48]} 58. Rdd2 {[%emt 0:02:16]} c4 {[%emt 0:00:35]} 59. Bxh3 {[%emt 0:01:41]} c3 {[%emt 0:00:16]} 60. Rc2 {[%emt 0:01:02]} Qb6+ {[%emt 0:00:07]} 61. Kg2 {[%emt 0:01:03]} Qc6+ {[%emt 0:00:29]} 62. Kg1 {[%emt 0:00:37]} Qxd6 {[%emt 0:00:40]} 63. g5 {[%emt 0:00:18]} Qd4+ {[%emt 0:00:40]} 64. Kg2 {[%emt 0:00:40]} Qd5+ {[%emt 0:00:18]} 65. Kg1 {[%emt 0:00:11]} Qd4+ {[%emt 0:00:10]} 66. Kg2 {[%emt 0:00:05]} Qd5+ {[%emt 0:00:05]} 67. Kg1 {[%emt 0:00:04]} Qd4+ {[%emt 0:00:04]} 68. Kg2 {[%emt 0:00:23]} 1/2-1/2

[Event "44th Chess Olympiad Women 2022"]
[Site "Chennai"]
[Date "2022.08.02"]
[Round "5.10"]
[White "Castrillon Gomez, Melissa"]
[Black "Vega Gutierrez, Sabrina"]
[Result "1/2-1/2"]
[ECO "E06"]
[WhiteElo "2230"]
[BlackElo "2366"]
[Annotator "RC"]
[PlyCount "89"]
[EventDate "2022.07.29"]
[EventType "team-tourn"]
[EventCountry "IND"]
[SourceTitle "playchess.com"]
[Source "ChessBase"]
[SourceQuality "1"]
[WhiteTeam "Colombia"]
[BlackTeam "Spain"]
[WhiteTeamCountry "COL"]
[BlackTeamCountry "ESP"]
[TimeControl "40/5400+30:1800+30"]

1. d4 {[%emt 0:00:05]} d5 {[%emt 0:00:08]} 2. c4 {[%emt 0:00:08]} e6 {[%emt 0:00:08]} 3. Nf3 {[%emt 0:00:10]} Nf6 {[%emt 0:00:08]} 4. g3 {[%emt 0:00:05]} Be7 {[%emt 0:00:09]} 5. Bg2 {[%emt 0:00:04]} O-O {[%emt 0:00:08]} 6. O-O {[%emt 0:00:04]} c6 {[%emt 0:00:09]} 7. Nc3 {[%emt 0:00:40]} a5 {[%emt 0:00:26]} 8. Nd2 {[%emt 0:03:28]} b5 {[%emt 0:01:34]} 9. cxb5 {[%emt 0:11:01]} cxb5 {[%emt 0:00:10]} 10. Nxb5 {[%emt 0:00:28]} Qb6 {[%emt 0:00:21]} 11. Nc3 {[%emt 0:02:10]} Qxd4 {[%emt 0:00:22]} 12. e4 {[%emt 0:00:18]} Nc6 {[%emt 0:01:00]} 13. Nb3 {[%emt 0:15:27]} Qxd1 {[%emt 0:01:50]} 14. Rxd1 {[%emt 0:03:50]} a4 {[%emt 0:00:08]} 15. exd5 {[%emt 0:00:16]} Nxd5 {[%emt 0:00:24]} 16. Nd4 {[%emt 0:15:41]} Nxd4 {[%emt 0:03:54]} 17. Rxd4 {[%emt 0:00:24]} Nxc3 {[%emt 0:48:38]} 18. bxc3 {[%emt 0:00:39]} Ra5 {[%emt 0:00:05]} 19. Rb1 {[%emt 0:13:36]} Bc5 {[%emt 0:02:21]} 20. Rd1 {[%emt 0:03:10]} Ba6 {[%emt 0:09:48]} 21. Bf4 {[%emt 0:04:46]} Bc4 {[%emt 0:03:16]} 22. Rd2 {[%emt 0:03:01]} h6 {[%emt 0:01:29]} 23. Bc7 {[%emt 0:06:12]} Ra7 {[%emt 0:06:11]} 24. Bb8 {[%emt 0:01:30]} Ra6 {[%emt 0:01:38]} 25. Bf1 {[%emt 0:01:11]} Bxf1 {[%emt 0:01:13]} 26. Kxf1 {[%emt 0:00:10]} Rc8 {[%emt 0:00:27]} 27. Be5 {[%emt 0:04:04]} f6 {[%emt 0:01:37]} 28. Bd4 {[%emt 0:03:09]} Ra7 {[%emt 0:05:56]} 29. Bxc5 {[%emt 0:02:11]} Rxc5 {[%emt 0:00:04]} 30. Rd3 {[%emt 0:00:17]} Rac7 {[%emt 0:01:14]} 31. Rb4 {[%emt 0:00:55]} Rxc3 {[%emt 0:01:55]} 32. Rxc3 {[%emt 0:00:03]} Rxc3 {[%emt 0:00:05]} 33. Rxa4 {[%emt 0:00:02]} Rc2 {[%emt 0:00:50]} 34. h4 {[%emt 0:01:16]} h5 {[%emt 0:00:04]} 35. Kg2 {[%emt 0:04:37]} Kf7 {[%emt 0:00:06]} 36. Ra7+ {[%emt 0:00:25]} Kg6 {[%emt 0:00:02]} 37. Kf3 {[%emt 0:00:27]} e5 {[%emt 0:00:31]} 38. a4 {[%emt 0:00:23]} Ra2 {[%emt 0:00:26]} 39. a5 {[%emt 0:00:52]} Kf5 {[%emt 0:03:52]} 40. Rxg7 {[%emt 0:01:47]} Rxa5 {[%emt 0:00:11]} 41. Rh7 {[%emt 0:30:47]} e4+ {[%emt 0:31:59]} 42. Ke3 {[%emt 0:00:57]} Ra3+ {[%emt 0:00:08]} 43. Ke2 {[%emt 0:00:06]} Ra2+ {[%emt 0:01:05]} 44. Ke3 {[%emt 0:00:07]} Ra3+ {[%emt 0:00:33]} 45. Kd4 {[%emt 0:00:12]} 1/2-1/2

[Event "44th Chess Olympiad Women 2022"]
[Site "Chennai"]
[Date "2022.08.02"]
[Round "5.10"]
[White "Argote Heredia, Valentina"]
[Black "Garcia Martin, Marta"]
[Result "1/2-1/2"]
[ECO "C88"]
[WhiteElo "2205"]
[BlackElo "2305"]
[Annotator "RC"]
[PlyCount "148"]
[EventDate "2022.07.29"]
[EventType "team-tourn"]
[EventCountry "IND"]
[SourceTitle "playchess.com"]
[Source "ChessBase"]
[SourceQuality "1"]
[WhiteTeam "Colombia"]
[BlackTeam "Spain"]
[WhiteTeamCountry "COL"]
[BlackTeamCountry "ESP"]
[TimeControl "40/5400+30:1800+30"]

1. e4 {[%emt 0:00:03]} e5 {[%emt 0:00:14]} 2. Nf3 {[%emt 0:00:06]} Nc6 {[%emt 0:00:05]} 3. Bb5 {[%emt 0:00:07]} a6 {[%emt 0:00:05]} 4. Ba4 {[%emt 0:00:05]} Nf6 {[%emt 0:00:08]} 5. O-O {[%emt 0:00:08]} Be7 {[%emt 0:00:07]} 6. Re1 {[%emt 0:00:07]} b5 {[%emt 0:00:05]} 7. Bb3 {[%emt 0:00:04]} O-O {[%emt 0:00:15]} 8. h3 {[%emt 0:00:42]} Bb7 {[%emt 0:00:23]} 9. c3 {[%emt 0:01:33]} d5 {[%emt 0:00:56]} 10. exd5 {[%emt 0:10:55]} Nxd5 {[%emt 0:00:09]} 11. d3 {[%emt 0:00:15]} Qd6 {[%emt 0:18:40]} 12. Nbd2 {[%emt 0:09:57]} Rad8 {[%emt 0:06:06]} 13. Nf1 {[%emt 0:05:43]} Kh8 {[%emt 0:19:18]} 14. Qe2 {[%emt 0:08:00]} f6 {[%emt 0:02:53]} 15. Ng3 {[%emt 0:07:22]} Qd7 {[%emt 0:00:40]} 16. Nh4 {[%emt 0:08:23]} f5 {[%emt 0:15:18]} 17. Qh5 {[%emt 0:11:27]} Bxh4 {[%emt 0:09:01]} 18. Qxh4 {[%emt 0:00:06]} Nce7 {[%emt 0:09:14]} 19. f3 {[%emt 0:12:16]} Ng6 {[%emt 0:03:41]} 20. Qg5 {[%emt 0:01:00]} f4 {[%emt 0:11:52]} 21. Ne4 {[%emt 0:06:06]} Rf5 {[%emt 0:00:07]} 22. Qg4 {[%emt 0:00:23]} Nf6 {[%emt 0:00:13]} 23. Nc5 {[%emt 0:03:11]} Qc8 {[%emt 0:01:52]} 24. Be6 {[%emt 0:00:07]} Nxg4 {[%emt 0:00:05]} 25. Bxc8 {[%emt 0:00:04]} Bxc8 {[%emt 0:00:07]} 26. hxg4 {[%emt 0:00:29]} Rf6 {[%emt 0:01:18]} 27. b3 {[%emt 0:03:35]} Rc6 {[%emt 0:00:34]} 28. Ba3 {[%emt 0:00:51]} a5 {[%emt 0:00:25]} 29. Rad1 {[%emt 0:01:23]} Kg8 {[%emt 0:00:31]} 30. b4 {[%emt 0:01:32]} axb4 {[%emt 0:00:35]} 31. Bxb4 {[%emt 0:00:29]} Kf7 {[%emt 0:00:27]} 32. Kf2 {[%emt 0:03:58]} h6 {[%emt 0:00:04]} 33. Rd2 {[%emt 0:02:03]} Rd5 {[%emt 0:00:09]} 34. Ne4 {[%emt 0:00:45]} Ra6 {[%emt 0:01:17]} 35. Rc1 {[%emt 0:01:13]} Rc6 {[%emt 0:00:32]} 36. Rcd1 {[%emt 0:00:31]} Be6 {[%emt 0:00:18]} 37. Ra1 {[%emt 0:00:46]} Ra6 {[%emt 0:00:42]} 38. Re1 {[%emt 0:01:09]} Rd8 {[%emt 0:00:29]} 39. a3 {[%emt 0:00:41]} Bd5 {[%emt 0:00:30]} 40. Nc5 {[%emt 0:00:15]} Raa8 {[%emt 0:00:31]} 41. Red1 {[%emt 0:31:14]} Bc6 {[%emt 0:04:46]} 42. d4 {[%emt 0:00:00]} Rd5 {[%emt 0:06:03]} 43. dxe5 {[%emt 0:00:00]} Rxd2+ {[%emt 0:00:23]} 44. Rxd2 {[%emt 0:00:00]} Nxe5 {[%emt 0:00:06]} 45. Nd3 {[%emt 0:00:00]} Nxd3+ {[%emt 0:06:03]} 46. Rxd3 {[%emt 0:00:00]} g5 {[%emt 0:01:09]} 47. Rd4 {[%emt 0:00:00]} Re8 {[%emt 0:03:45]} 48. Ba5 {[%emt 0:00:00]} Ra8 {[%emt 0:01:41]} 49. Bb4 {[%emt 0:00:00]} Re8 {[%emt 0:00:11]} 50. c4 {[%emt 0:00:00]} Re3 {[%emt 0:00:27]} 51. cxb5 {[%emt 0:00:00]} Bxb5 {[%emt 0:00:14]} 52. Rd8 {[%emt 0:00:00]} Re2+ {[%emt 0:00:30]} 53. Kg1 {[%emt 0:00:00]} Rc2 {[%emt 0:00:41]} 54. Rf8+ {[%emt 0:00:00]} Kg6 {[%emt 0:02:07]} 55. Rf5 {[%emt 0:00:00]} Rc1+ {[%emt 0:01:41]} 56. Kh2 {[%emt 0:00:00]} Bf1 {[%emt 0:00:24]} 57. Rc5 {[%emt 0:00:00]} Rxc5 {[%emt 0:00:07]} 58. Bxc5 {[%emt 0:00:05]} h5 {[%emt 0:00:42]} 59. gxh5+ {[%emt 0:00:42]} Kxh5 {[%emt 0:00:06]} 60. g3 {[%emt 0:00:13]} fxg3+ {[%emt 0:01:42]} 61. Kxg3 {[%emt 0:00:16]} Bb5 {[%emt 0:00:52]} 62. Be7 {[%emt 0:01:07]} Kg6 {[%emt 0:00:12]} 63. f4 {[%emt 0:00:31]} gxf4+ {[%emt 0:00:09]} 64. Kxf4 {[%emt 0:00:04]} Kf7 {[%emt 0:00:05]} 65. Bc5 {[%emt 0:00:16]} Ke6 {[%emt 0:00:05]} 66. Ke4 {[%emt 0:00:04]} Kd7 {[%emt 0:00:43]} 67. Kd4 {[%emt 0:00:24]} Kc6 {[%emt 0:00:06]} 68. Bf8 {[%emt 0:00:05]} Be2 {[%emt 0:00:27]} 69. Be7 {[%emt 0:00:52]} Kb5 {[%emt 0:00:12]} 70. Bc5 {[%emt 0:00:08]} Bf1 {[%emt 0:00:12]} 71. Bf8 {[%emt 0:00:15]} Be2 {[%emt 0:00:06]} 72. Bc5 {[%emt 0:00:05]} Bf1 {[%emt 0:00:05]} 73. Bf8 {[%emt 0:00:03]} Be2 {[%emt 0:00:05]} 74. Bc5 {[%emt 0:00:05]} Bf1 {[%emt 0:00:04]} 1/2-1/2

[Event "44th Chess Olympiad Women 2022"]
[Site "Chennai"]
[Date "2022.08.02"]
[Round "5.10"]
[White "Eizaguerri Floris, Maria"]
[Black "Rodriguez Rueda, Paula Andrea"]
[Result "1/2-1/2"]
[ECO "B99"]
[WhiteElo "2176"]
[BlackElo "2237"]
[Annotator "NA RC"]
[PlyCount "112"]
[EventDate "2022.07.29"]
[EventType "team-tourn"]
[EventCountry "IND"]
[SourceTitle "playchess.com"]
[Source "ChessBase"]
[SourceQuality "1"]
[WhiteTeam "Spain"]
[BlackTeam "Colombia"]
[WhiteTeamCountry "ESP"]
[BlackTeamCountry "COL"]
[TimeControl "40/5400+30:1800+30"]

1. e4 {[%emt 0:00:02]} c5 {[%emt 0:00:13]} 2. Nf3 {[%emt 0:00:06]} d6 {[%emt 0:00:16]} 3. d4 {[%emt 0:00:08]} cxd4 {[%emt 0:00:12]} 4. Nxd4 {[%emt 0:00:07]} Nf6 {[%emt 0:00:09]} 5. Nc3 {[%emt 0:00:08]} a6 {[%emt 0:00:03]} 6. Bg5 {[%emt 0:00:18]} e6 {[%emt 0:00:36]} 7. f4 {[%emt 0:00:10]} Be7 {[%emt 0:00:04]} 8. Qf3 {[%emt 0:00:57]} Qc7 {[%emt 0:00:35]} 9. O-O-O {[%emt 0:00:20]} Nbd7 {[%emt 0:00:28]} 10. g4 {[%emt 0:00:29]} h6 {[%emt 0:11:18]} 11. Bxf6 {[%emt 0:00:14]} Nxf6 {[%emt 0:02:00]} 12. h4 {[%emt 0:10:10]} b5 {[%emt 0:08:40]} 13. g5 {[%emt 0:03:47]} hxg5 {[%emt 0:13:20]} 14. hxg5 {[%emt 0:00:08]} Rxh1 {[%emt 0:00:37]} 15. Qxh1 {[%emt 0:02:46]} Ng8 {[%emt 0:32:03]} 16. Qh8 {[%emt 0:13:14]} Kf8 {[%emt 0:00:05]} 17. g6 {[%emt 0:00:07]} b4 {[%emt 0:04:19]} 18. Nce2 {[%emt 0:11:39]} Bf6 {[%emt 0:04:39]} 19. Bh3 {[%emt 0:03:23]} e5 {[%emt 0:06:55]} 20. fxe5 {[%emt 0:04:52]} dxe5 {[%emt 0:00:18]} 21. Nf5 {[%emt 0:14:48]} fxg6 {[%emt 0:03:09]} 22. Nd6 {[%emt 0:06:27]} Bxh3 {[%emt 0:00:11]} 23. Qxh3 {[%emt 0:00:05]} Rd8 {[%emt 0:02:28]} 24. Qe6 {[%emt 0:00:10]} Qe7 {[%emt 0:00:32]} 25. Qd5 {[%emt 0:02:58]} Nh6 {[%emt 0:00:14]} 26. c4 {[%emt 0:03:05]} bxc3 {[%emt 0:01:50]} 27. Nxc3 {[%emt 0:00:06]} Nf7 {[%emt 0:07:04]} 28. Qxf7+ {[%emt 0:00:27]} Qxf7 {[%emt 0:00:01]} 29. Nxf7 {[%emt 0:00:07]} Rxd1+ {[%emt 0:00:24]} 30. Kxd1 {[%emt 0:00:07]} Kxf7 {[%emt 0:00:03]} 31. Nd5 {[%emt 0:06:39]} a5 {[%emt 0:00:37]} 32. Ke2 {[%emt 0:01:43]} Bd8 {[%emt 0:00:48]} 33. b4 {[%emt 0:05:01]} axb4 34. Nxb4 {[%emt 0:00:01]} Ke6 {[%emt 0:01:37]} 35. Nd3 {[%emt 0:05:02]} Kd6 {[%emt 0:00:19]} 36. Kd2 {[%emt 0:01:21]} Bg5+ {[%emt 0:00:35]} 37. Ke2 {[%emt 0:00:54]} Bf6 {[%emt 0:00:06]} 38. Kd2 {[%emt 0:00:09]} Kc6 {[%emt 0:00:11]} 39. Kc3 {[%emt 0:01:17]} Kb5 {[%emt 0:01:09]} 40. Kb3 {[%emt 0:00:50]} g5 {[%emt 0:01:18]} 41. Nf2 {[%emt 0:32:41]} Bd8 {[%emt 0:30:08]} 42. Kc3 {[%emt 0:02:42]} Bb6 {[%emt 0:00:00]} 43. Ng4 {[%emt 0:00:00]} Bd4+ {[%emt 0:00:00]} 44. Kb3 {[%emt 0:00:00]} Kc5 {[%emt 0:00:00]} 45. a4 {[%emt 0:00:00]} Ba1 {[%emt 0:00:00]} 46. a5 {[%emt 0:00:00]} Kb5 {[%emt 0:00:00]} 47. a6 {[%emt 0:00:00]} Kxa6 {[%emt 0:00:00]} 48. Kc4 {[%emt 0:00:00]} Kb6 {[%emt 0:00:00]} 49. Kd5 {[%emt 0:00:00]} Kc7 {[%emt 0:00:00]} 50. Nxe5 {[%emt 0:00:00]} Bxe5 {[%emt 0:00:00]} 51. Kxe5 {[%emt 0:00:00]} g6 {[%emt 0:00:00]} 52. Kf6 {[%emt 0:00:00]} g4 {[%emt 0:00:00]} 53. e5 {[%emt 0:00:00]} g3 {[%emt 0:00:00]} 54. e6 {[%emt 0:00:00]} g2 {[%emt 0:00:00]} 55. e7 {[%emt 0:00:00]} g1=Q {[%emt 0:00:00]} 56. e8=Q {[%emt 0:00:00]} g5 {[%emt 0:00:00]} 1/2-1/2